fUSD/lending_fUSD_20250923
["ID","MTS","AMOUNT","RATE_DAILY","PERIOD"]
[387235709,1758664262639,-500.0,0.0002493,3]
[387235710,1758664262648,-500.0,0.0002493,3]
[387235711,1758664262657,-500.0,0.0002493,3]
[387235712,1758664262667,-500.0,0.0002493,3]
[387235713,1758664262676,-500.0,0.0002493,3]
[387235714,1758664262685,-500.0,0.0002493,3]
[387235715,1758664262695,-500.0,0.0002493,3]
[387235716,1758664262704,-500.0,0.0002493,3]
[387235717,1758664262713,-500.0,0.0002493,3]
[387235718,1758664262723,-500.0,0.0002493,3]
[387235719,1758664262732,-500.0,0.0002493,3]
[387235720,1758664262742,-500.0,0.0002493,3]
[387235721,1758664262751,-500.0,0.0002493,3]
[387235722,1758664262760,-715.33,0.0002493,3]
[387235723,1758664262770,-500.0,0.0002493,3]
[387235724,1758664262780,-500.0,0.0002493,3]
[387235725,1758664262790,-715.33,0.0002493,3]
[387235726,1758664262800,-500.0,0.0002493,3]
[387235727,1758664262809,-715.33,0.0002493,3]
[387235728,1758664262819,-500.0,0.0002493,3]
[387235729,1758664262829,-715.33,0.0002493,3]
[387235730,1758664262839,-500.0,0.0002493,3]
[387235731,1758664262848,-715.33,0.0002493,3]
[387235732,1758664262858,-715.33,0.0002493,3]
[387235733,1758664262869,-715.33,0.0002493,3]
[387235734,1758664262879,-715.33,0.0002493,3]
[387235735,1758664262889,-715.53,0.0002493,3]
[387235736,1758664262899,-5837.31,0.0002493,2]
[387235737,1758664262909,-5837.31,0.0002493,2]
[387235738,1758664262919,-5837.31,0.0002493,2]
[387235739,1758664262928,-5837.31,0.0002493,2]
[387235740,1758664262938,-5837.31,0.0002493,2]
[387235741,1758664262948,-400.0,0.00024931,3]
[387235742,1758664262957,-400.0,0.00024931,3]
[387235743,1758664262967,-400.0,0.00024931,3]
[387235744,1758664262978,-422.15,0.00024931,3]
[387235745,1758664262987,-400.0,0.00024931,3]
[387235746,1758664262997,-400.0,0.00024931,3]
[387235747,1758664263007,-400.0,0.00024931,3]
[387235748,1758664263016,-400.0,0.00024931,3]
[387235749,1758664263026,-400.0,0.00024931,3]
[387235750,1758664263036,-400.0,0.00024931,3]
[387235751,1758664263045,-722.3,0.00024931,3]
[387235752,1758664263055,-400.0,0.00024931,3]
[387235753,1758664263065,-425.13,0.00024931,3]
[387235754,1758664263075,-400.0,0.00024931,3]
[387235755,1758664263085,-463.61,0.00024931,3]
[387235756,1758664263095,-400.0,0.00024931,3]
[387235757,1758664263105,-400.0,0.00024931,3]
[387235758,1758664263115,-400.81,0.00024931,3]
[387235759,1758664263124,-606.67,0.00024931,3]
[387235760,1758664263134,-400.0,0.00024931,3]
[387235761,1758664263143,-400.0,0.00024931,3]
[387235762,1758664263153,-400.0,0.00024931,3]
[387235763,1758664263505,-558.51,0.00024931,3]
[387235764,1758664263521,-400.0,0.00024931,3]
[387235765,1758664263531,-400.0,0.00024931,3]
[387235766,1758664263541,-400.0,0.00024931,3]
[387235767,1758664263551,-517.79,0.00024931,3]
[387235768,1758664263561,-410.1,0.00024931,3]
[387235769,1758664263571,-400.0,0.00024931,3]
[387235770,1758664263582,-400.0,0.00024931,3]
[387235771,1758664263592,-513.24,0.00024931,3]
[387235772,1758664263602,-864.38,0.00024931,3]
[387235773,1758664263612,-400.0,0.00024931,3]
[387235774,1758664263622,-400.0,0.00024931,3]
[387235775,1758664263632,-400.0,0.00024931,3]
[387235776,1758664263643,-400.0,0.00024931,3]
[387235777,1758664263654,-400.0,0.00024931,3]
[387235778,1758664263664,-400.0,0.00024931,3]
[387235779,1758664263675,-400.0,0.00024931,3]
[387235780,1758664263685,-400.0,0.00024931,3]
[387235781,1758664263695,-1113.94,0.00024931,3]
[387235782,1758664263705,-1113.94,0.00024931,3]
[387235783,1758664263714,-400.0,0.00024931,3]
[387235784,1758664263724,-499.32,0.00024931,3]
[387235785,1758664263733,-400.0,0.00024931,3]
[387235786,1758664263743,-400.0,0.00024931,3]
[387235787,1758664263752,-400.0,0.00024931,3]
[387235788,1758664263762,-400.0,0.00024931,3]
[387235789,1758664263772,-400.0,0.00024931,3]
[387235790,1758664263782,-400.0,0.00024931,3]
[387235791,1758664263792,-701.54,0.00024931,3]
[387235792,1758664263801,-448.15,0.00024931,3]
[387235793,1758664263811,-527.27,0.00024931,3]
[387235794,1758664263821,-400.0,0.00024931,3]
[387235795,1758664263831,-550.8,0.00024931,3]
[387235796,1758664263841,-400.0,0.00024931,3]
[387235797,1758664263850,-400.0,0.00024931,3]
[387235798,1758664263860,-400.0,0.00024931,3]
[387235799,1758664263869,-433.43,0.00024931,3]
[387235800,1758664263879,-400.0,0.00024931,3]
[387235801,1758664263889,-1431.46,0.00024931,3]
[387235802,1758664263898,-400.0,0.00024931,3]
[387235803,1758664263908,-888.36,0.00024931,3]
[387235804,1758664263918,-400.0,0.00024931,3]
[387235805,1758664263927,-400.0,0.00024931,3]
[387235806,1758664263937,-500.78,0.00024931,3]
[387235807,1758664263947,-400.0,0.00024931,3]
[387235808,1758664263957,-400.0,0.00024931,3]
[387235809,1758664263966,-415.37,0.00024931,3]
[387235810,1758664263976,-432.65,0.00024931,3]
[387235811,1758664263985,-400.0,0.00024931,3]
[387235812,1758664263995,-851.65,0.00024931,3]
[387235813,1758664264004,-449.67,0.00024931,3]
[387235814,1758664264014,-514.2,0.00024931,3]
[387235815,1758664264023,-696.09,0.00024931,3]
[387235816,1758664264033,-400.0,0.00024931,3]
[387235817,1758664264044,-942.3,0.00024931,3]
[387235818,1758664264053,-401.11,0.00024931,3]
[387235819,1758664264063,-409.1,0.00024931,3]
[387235820,1758664264073,-400.0,0.00024931,3]
[387235821,1758664264083,-158.71116228,0.00024931,3]
[387235822,1758664264093,-400.0,0.00024931,3]
[387235823,1758664264103,-400.0,0.00024931,3]
[387235824,1758664264112,-483.66,0.00024931,3]
[387235825,1758664264122,-700.73,0.00024931,3]
[387235826,1758664264131,-1218.15,0.00024931,3]
[387235827,1758664264141,-432.38,0.00024931,3]
[387235828,1758664264150,-400.0,0.00024931,3]
[387235829,1758664264160,-400.0,0.00024931,3]
[387235830,1758664264169,-400.0,0.00024931,3]
[387235831,1758664264179,-413.32,0.00024931,3]
[387235832,1758664264189,-600.39,0.00024931,3]
[387235833,1758664264199,-400.0,0.00024931,3]
[387235834,1758664264209,-400.0,0.00024931,3]
[387235835,1758664264218,-525.79,0.00024931,3]
[387235836,1758664264228,-400.0,0.00024931,3]
[387235837,1758664264237,-400.0,0.00024931,3]
[387235838,1758664264247,-585.89,0.00024931,3]
[387235839,1758664264257,-400.0,0.00024931,3]
[387235840,1758664264266,-400.0,0.00024931,3]
[387235841,1758664264276,-1162.35,0.00024931,3]
[387235842,1758664264286,-869.19,0.00024931,3]
[387235843,1758664264296,-683.96,0.00024931,3]
[387235844,1758664264306,-400.0,0.00024931,3]
[387235845,1758664264316,-853.3,0.00024931,3]
[387235846,1758664264325,-400.0,0.00024931,3]
[387235847,1758664264336,-400.0,0.00024931,3]
[387235848,1758664264346,-415.65457916,0.00024931,3]
[387235849,1758664264357,-400.0,0.00024931,3]
[387235850,1758664264368,-684.3,0.00024931,3]
[387235851,1758664264378,-400.0,0.00024931,3]
[387235852,1758664264388,-400.0,0.00024931,3]
[387235853,1758664264397,-400.0,0.00024931,3]
[387235854,1758664264407,-400.0,0.00024931,3]
[387235855,1758664264417,-400.0,0.00024931,3]
[387235856,1758664264426,-400.0,0.00024931,3]
[387235857,1758664264436,-402.70323365,0.00024931,3]
[387235858,1758664264445,-400.0,0.00024931,3]
[387235859,1758664264455,-400.0,0.00024931,3]
[387235860,1758664264465,-400.0,0.00024931,3]
[387235861,1758664264475,-400.0,0.00024931,3]
[387235862,1758664264484,-684.69,0.00024931,3]
[387235863,1758664264493,-684.69,0.00024931,3]
[387235864,1758664264503,-418.06712115,0.00024931,3]
[387235865,1758664264512,-400.0,0.00024931,3]
[387235866,1758664264522,-400.0,0.00024931,3]
[387235867,1758664264532,-433.77,0.00024931,3]
[387235868,1758664264542,-400.0,0.00024931,3]
[387235869,1758664264552,-400.0,0.00024931,3]
[387235870,1758664264561,-400.0,0.00024931,3]
[387235871,1758664264571,-400.0,0.00024931,3]
[387235872,1758664264580,-1130.1,0.00024931,3]
[387235873,1758664264589,-400.0,0.00024931,3]
[387235874,1758664264599,-528.61458425,0.00024931,3]
[387235875,1758664264609,-404.73702167,0.00024931,3]
[387235876,1758664264619,-400.0,0.00024931,3]
[387235877,1758664264628,-400.0,0.00024931,3]
[387235878,1758664264637,-1034.82,0.00024931,3]
[387235879,1758664264647,-414.11,0.00024931,3]
[387235880,1758664264657,-182.12881662,0.00024931,3]
[387235881,1758664264666,-400.0,0.00024931,3]
[387235882,1758664264676,-400.0,0.00024931,3]
[387235883,1758664264686,-400.0,0.00024931,3]
[387235884,1758664264695,-400.0,0.00024931,3]
[387235885,1758664264704,-568.34,0.00024931,3]
[387235886,1758664264714,-400.0,0.00024931,3]
[387235887,1758664264723,-497.27,0.00024931,3]
[387235888,1758664264732,-400.0,0.00024931,3]
[387235889,1758664264742,-483.14,0.00024931,3]
[387235890,1758664264751,-400.0,0.00024931,3]
[387235891,1758664264760,-400.0,0.00024931,3]
[387235892,1758664264770,-400.0,0.00024931,3]
[387235893,1758664264779,-400.0,0.00024931,3]
[387235894,1758664264789,-400.0,0.00024931,3]
[387235895,1758664264798,-963.02,0.00024931,3]
[387235896,1758664264807,-442.92,0.00024931,3]
[387235897,1758664264817,-400.0,0.00024931,3]
[387235898,1758664264826,-400.0,0.00024931,3]
[387235899,1758664264835,-400.0,0.00024931,3]
[387235900,1758664264845,-418.64606496,0.00024931,3]
[387235901,1758664264854,-400.0,0.00024931,3]
[387235902,1758664264864,-400.0,0.00024931,3]
[387235903,1758664264873,-419.2,0.00024931,3]
[387235904,1758664264883,-436.75003082,0.00024931,3]
[387235905,1758664264892,-400.0,0.00024931,3]
[387235906,1758664264902,-408.10654915,0.00024931,3]
[387235907,1758664264911,-400.0,0.00024931,3]
[387235908,1758664264921,-1113.1,0.00024931,3]
[387235909,1758664264930,-400.0,0.00024931,3]
[387235910,1758664264940,-564.87,0.00024931,3]
[387235911,1758664264950,-400.0,0.00024931,3]
[387235912,1758664264959,-400.0,0.00024931,3]
[387235913,1758664264969,-400.0,0.00024931,3]
[387235914,1758664264979,-442.1,0.00024931,3]
[387235915,1758664264989,-612.62,0.00024931,3]
[387235916,1758664264998,-400.0,0.00024931,3]
[387235917,1758664265008,-544.44,0.00024931,3]
[387235918,1758664265017,-415.26859902,0.00024931,3]
[387235919,1758664265027,-553.48,0.00024931,3]
[387235920,1758664265037,-400.0,0.00024931,3]
[387235921,1758664265047,-811.92,0.00024931,3]
[387235922,1758664265058,-400.0,0.00024931,3]
[387235923,1758664265069,-400.0,0.00024931,3]
[387235924,1758664265080,-866.52,0.00024931,3]
[387235925,1758664265089,-400.0,0.00024931,3]
[387235926,1758664265099,-400.0,0.00024931,3]
[387235927,1758664265108,-400.0,0.00024931,3]
[387235928,1758664265118,-151.0,0.00024931,7]
[387235929,1758664265128,-400.0,0.00024931,3]
[387235930,1758664265137,-400.0,0.00024931,3]
[387235931,1758664265148,-400.0,0.00024931,3]
[387235932,1758664265157,-1271.99,0.00024931,3]
[387235933,1758664265167,-400.0,0.00024931,3]
[387235934,1758664265177,-400.0,0.00024931,2]
[387235935,1758664265188,-555.94,0.00024931,3]
[387235936,1758664265199,-400.0,0.00024931,3]
[387235937,1758664265209,-400.0,0.00024931,3]
[387235938,1758664265219,-516.66,0.00024931,3]
[387235939,1758664265230,-443.34,0.00024931,3]
[387235940,1758664265241,-460.81,0.00024931,3]
[387235941,1758664265251,-400.0,0.00024931,3]
[387235942,1758664265263,-400.0,0.00024931,3]
[387235943,1758664265272,-400.0,0.00024931,3]
[387235944,1758664265282,-502.53,0.00024931,3]
[387235945,1758664265291,-505.37,0.00024931,3]
[387235946,1758664265301,-542.19,0.00024931,3]
[387235947,1758664265311,-400.0,0.00024931,3]
[387235948,1758664265321,-688.7,0.00024931,3]
[387235949,1758664265330,-1015.44,0.00024931,3]
[387235950,1758664265340,-1292.63,0.00024931,3]
[387235951,1758664265351,-400.0,0.00024931,3]
[387235952,1758664265366,-1611.73,0.00024931,3]
[387235953,1758664265376,-400.0,0.00024931,3]
[387235954,1758664265385,-637.7,0.00024931,3]
[387235955,1758664265395,-400.0,0.00024931,3]
[387235956,1758664265405,-400.0,0.00024931,3]
[387235957,1758664265416,-400.0,0.00024931,3]
[387235958,1758664265426,-1000.0,0.00024931,3]
[387235959,1758664265438,-660.83,0.00024931,3]
[387235960,1758664265448,-549.84,0.00024931,3]
[387235961,1758664265459,-526.93,0.00024931,3]
[387235962,1758664265468,-1262.83,0.00024931,3]
[387235963,1758664265478,-400.0,0.00024931,3]
[387235964,1758664265487,-400.0,0.00024931,3]
[387235965,1758664265497,-400.0,0.00024931,3]
[387235966,1758664265506,-235.0,0.00024931,7]
[387235967,1758664265515,-400.0,0.00024931,3]
[387235968,1758664265525,-400.0,0.00024931,3]
[387235969,1758664265534,-511.14,0.00024931,3]
[387235970,1758664265543,-400.0,0.00024931,3]
[387235971,1758664265553,-1072.23,0.00024931,3]
[387235972,1758664265562,-400.0,0.00024931,3]
[387235973,1758664265571,-435.66,0.00024931,3]
[387235974,1758664265581,-400.0,0.00024931,3]
[387235975,1758664265591,-446.42,0.00024931,3]
[387235976,1758664265600,-400.0,0.00024931,3]
[387235977,1758664265610,-956.24,0.00024931,3]
[387235978,1758664265619,-804.81,0.00024931,3]
[387235979,1758664265628,-493.33,0.00024931,3]
[387235980,1758664265637,-400.0,0.00024931,3]
[387235981,1758664265646,-400.0,0.00024931,3]
[387235982,1758664265656,-400.0,0.00024931,3]
[387235983,1758664265665,-400.0,0.00024931,3]
[387235984,1758664265674,-400.0,0.00024931,3]
[387235985,1758664265683,-400.0,0.00024931,3]
[387235986,1758664265693,-400.0,0.00024931,3]
[387235987,1758664265702,-400.0,0.00024931,3]
[387235988,1758664265711,-425.12,0.00024931,3]
[387235989,1758664265721,-400.0,0.00024931,3]
[387235990,1758664265731,-400.0,0.00024931,3]
[387235991,1758664265740,-400.0,0.00024931,3]
[387235992,1758664265749,-536.14,0.00024931,3]
[387235993,1758664265759,-400.0,0.00024931,3]
[387235994,1758664265768,-400.0,0.00024931,3]
[387235995,1758664265777,-400.0,0.00024931,3]
[387235996,1758664265788,-400.0,0.00024931,3]
[387235997,1758664265798,-400.0,0.00024931,3]
[387235998,1758664265808,-403.63068218,0.00024931,3]
[387235999,1758664265819,-400.0,0.00024931,3]
[387236000,1758664265829,-204.57317923,0.00024931,3]
[387236001,1758664265840,-400.0,0.00024931,3]
[387236002,1758664265850,-400.0,0.00024931,3]
[387236003,1758664265859,-400.0,0.00024931,3]
[387236004,1758664265869,-400.0,0.00024931,3]
[387236005,1758664266005,-400.0,0.00024931,2]
[387236006,1758664266018,-1446.35,0.00024931,3]
[387236007,1758664266028,-647.53,0.00024931,3]
[387236008,1758664266038,-400.0,0.00024931,3]
[387236009,1758664266049,-400.0,0.00024931,3]
[387236010,1758664266059,-151.0,0.00024931,7]
[387236011,1758664266069,-151.0,0.00024931,7]
[387236012,1758664266079,-400.0,0.00024931,3]
[387236013,1758664266090,-400.0,0.00024931,3]
[387236014,1758664266101,-400.0,0.00024931,3]
[387236015,1758664266111,-400.0,0.00024931,3]
[387236016,1758664266120,-712.76,0.00024931,3]
[387236017,1758664266129,-400.0,0.00024931,3]
[387236018,1758664266138,-400.0,0.00024931,3]
[387236019,1758664266149,-742.51,0.00024931,3]
[387236020,1758664266159,-400.0,0.00024931,3]
[387236021,1758664266168,-400.0,0.00024931,3]
[387236022,1758664266177,-609.25,0.00024931,3]
[387236023,1758664266186,-1004.12,0.00024931,3]
[387236024,1758664266196,-400.0,0.00024931,3]
[387236025,1758664266205,-400.0,0.00024931,3]
[387236026,1758664266214,-400.0,0.00024931,3]
[387236027,1758664266223,-300.0,0.00024931,3]
[387236028,1758664266232,-1267.73,0.00024931,3]
[387236029,1758664266242,-400.0,0.00024931,3]
[387236030,1758664266251,-400.0,0.00024931,3]
[387236031,1758664266261,-1089.2,0.00024931,3]
[387236032,1758664266270,-400.0,0.00024931,3]
[387236033,1758664266280,-400.0,0.00024931,3]
[387236034,1758664266289,-936.94,0.00024931,3]
[387236035,1758664266298,-400.0,0.00024931,3]
[387236036,1758664266309,-400.0,0.00024931,3]
[387236037,1758664266322,-400.0,0.00024931,3]
[387236038,1758664266332,-400.0,0.00024931,3]
[387236039,1758664266342,-628.73,0.00024931,3]
[387236040,1758664266351,-792.8,0.00024931,3]
[387236041,1758664266364,-400.0,0.00024931,3]
[387236042,1758664266373,-718.2,0.00024931,3]
[387236043,1758664266383,-771.65,0.00024931,3]
[387236044,1758664266392,-735.99,0.00024931,3]
[387236045,1758664266401,-400.0,0.00024931,3]
[387236046,1758664266410,-724.09,0.00024931,3]
[387236047,1758664266419,-400.0,0.00024931,3]
[387236048,1758664266429,-400.0,0.00024931,3]
[387236049,1758664266438,-735.82,0.00024931,3]
[387236050,1758664266447,-400.0,0.00024931,3]
[387236051,1758664266456,-400.0,0.00024931,3]
[387236052,1758664266466,-400.0,0.00024931,3]
[387236053,1758664266475,-724.51,0.00024931,3]
[387236054,1758664266484,-590.38,0.00024931,3]
[387236055,1758664266494,-400.0,0.00024931,3]
[387236056,1758664266503,-443.29,0.00024931,3]
[387236057,1758664266513,-424.82,0.00024931,3]
[387236058,1758664266522,-704.47,0.00024931,3]
[387236059,1758664266532,-400.0,0.00024931,3]
[387236060,1758664266542,-400.0,0.00024931,3]
[387236061,1758664266552,-400.0,0.00024931,3]
[387236062,1758664266561,-540.47407362,0.00024931,3]
[387236063,1758664266571,-419.40398198,0.00024931,3]
[387236064,1758664266580,-597.65,0.00024931,3]
[387236065,1758664266590,-644.02,0.00024931,3]
[387236066,1758664266599,-490.6,0.00024931,3]
[387236067,1758664266608,-544.45,0.00024931,3]
[387236068,1758664266618,-400.0,0.00024931,3]
[387236069,1758664266627,-400.0,0.00024931,3]
[387236070,1758664266636,-400.0,0.00024931,3]
[387236071,1758664266645,-400.0,0.00024931,3]
[387236072,1758664266654,-1124.92,0.00024931,3]
[387236073,1758664266663,-400.98,0.00024931,3]
[387236074,1758664266672,-1607.1,0.00024931,3]
[387236075,1758664266685,-466.91984898,0.00024931,3]
[387236076,1758664266695,-643.25,0.00024931,3]
[387236077,1758664266704,-400.0,0.00024931,3]
[387236078,1758664266714,-400.0,0.00024931,3]
[387236079,1758664266723,-400.0,0.00024931,3]
[387236080,1758664266733,-702.26,0.00024931,3]
[387236081,1758664266742,-400.0,0.00024931,3]
[387236082,1758664266752,-623.69,0.00024931,3]
[387236083,1758664266761,-400.0,0.00024931,3]
[387236084,1758664266770,-400.0,0.00024931,3]
[387236085,1758664266780,-1080.61,0.00024931,3]
[387236086,1758664266789,-422.24,0.00024931,3]
[387236087,1758664266799,-417.7,0.00024931,3]
[387236088,1758664266808,-909.48,0.00024931,3]
[387236089,1758664266818,-400.0,0.00024931,3]
[387236090,1758664266828,-515.95,0.00024931,3]
[387236091,1758664266839,-400.0,0.00024931,3]
[387236092,1758664266850,-419.15,0.00024931,3]
[387236093,1758664266860,-400.0,0.00024931,3]
[387236094,1758664266870,-1535.1,0.00024931,3]
[387236095,1758664266879,-421.32,0.00024931,3]
[387236096,1758664266888,-610.62,0.00024931,3]
[387236097,1758664266898,-400.0,0.00024931,3]
[387236098,1758664266907,-400.0,0.00024931,3]
[387236099,1758664266916,-400.0,0.00024931,3]
[387236100,1758664266925,-400.0,0.00024931,3]
[387236101,1758664266934,-400.0,0.00024931,3]
[387236102,1758664266943,-400.0,0.00024931,3]
[387236103,1758664266952,-788.82,0.00024931,3]
[387236104,1758664266964,-501.25,0.00024931,3]
[387236105,1758664266973,-400.0,0.00024931,3]
[387236106,1758664266983,-400.0,0.00024931,3]
[387236107,1758664266992,-400.0,0.00024931,3]
[387236108,1758664267002,-400.0,0.00024931,3]
[387236109,1758664267011,-400.0,0.00024931,3]
[387236110,1758664267020,-400.0,0.00024931,3]
[387236111,1758664267029,-467.58,0.00024931,3]
[387236112,1758664267038,-614.35,0.00024931,3]
[387236113,1758664267047,-387.17,0.00024931,3]
[387236114,1758664267056,-686.69,0.00024931,3]
[387236115,1758664267066,-400.0,0.00024931,3]
[387236116,1758664267075,-400.0,0.00024931,3]
[387236117,1758664267085,-400.0,0.00024931,3]
[387236118,1758664267094,-1284.73,0.00024931,3]
[387236119,1758664267103,-642.36,0.00024931,3]
[387236120,1758664267112,-560.54,0.00024931,3]
[387236121,1758664267122,-1073.37,0.00024931,3]
[387236122,1758664267131,-400.0,0.00024931,3]
[387236123,1758664267140,-151.763332,0.00024931,7]
[387236124,1758664267149,-753.1,0.00024931,3]
[387236125,1758664267158,-400.0,0.00024931,3]
[387236126,1758664267167,-545.97,0.00024931,3]
[387236127,1758664267180,-400.0,0.00024931,3]
[387236128,1758664267197,-400.0,0.00024931,3]
[387236129,1758664267205,-400.0,0.00024931,3]
[387236130,1758664267214,-580.05,0.00024931,3]
[387236131,1758664267223,-1196.06,0.00024931,3]
[387236132,1758664267231,-442.62548272,0.00024931,3]
[387236133,1758664267241,-779.4,0.00024931,3]
[387236134,1758664267250,-1387.31,0.00024931,3]
[387236135,1758664267261,-400.0,0.00024931,3]
[387236136,1758664267271,-400.0,0.00024931,3]
[387236137,1758664267280,-526.44,0.00024931,3]
[387236138,1758664267289,-400.0,0.00024931,3]
[387236139,1758664267298,-914.9,0.00024931,3]
[387236140,1758664267307,-151.0,0.00024931,7]
[387236141,1758664267316,-282.340269,0.00024931,7]
[387236142,1758664267325,-400.0,0.00024931,3]
[387236143,1758664267334,-400.0,0.00024931,3]
[387236144,1758664267343,-10481.21,0.00024931,3]
[387236145,1758664267353,-751.05,0.00024931,3]
[387236146,1758664267367,-400.0,0.00024931,3]
[387236147,1758664267376,-400.0,0.00024931,3]
[387236148,1758664267385,-400.0,0.00024931,3]
[387236149,1758664267396,-585.69,0.00024931,3]
[387236150,1758664267406,-1984.04,0.00024931,3]
[387236151,1758664267416,-400.0,0.00024931,3]
[387236152,1758664267426,-400.0,0.00024931,3]
[387236153,1758664267437,-1075.59,0.00024931,3]
[387236154,1758664267446,-1243.9,0.00024931,3]
[387236155,1758664267456,-2675.56,0.00024931,3]
[387236156,1758664267466,-400.0,0.00024931,3]
[387236157,1758664267474,-151.0,0.00024931,7]
[387236158,1758664267482,-151.0,0.00024931,7]
[387236159,1758664267490,-1687.56,0.00024931,3]
[387236160,1758664267499,-603.56,0.00024931,3]
[387236161,1758664267508,-400.0,0.00024931,3]
[387236162,1758664267518,-400.0,0.00024931,3]
[387236163,1758664267527,-613.2,0.00024931,3]
[387236164,1758664267536,-400.0,0.00024931,3]
[387236165,1758664267545,-400.0,0.00024931,3]
[387236166,1758664267555,-1380.17,0.00024931,3]
[387236167,1758664267564,-637.31,0.00024931,3]
[387236168,1758664267573,-536.31,0.00024931,3]
[387236169,1758664267583,-400.0,0.00024931,3]
[387236170,1758664267592,-1960.16,0.00024931,3]
[387236171,1758664267601,-3596.07,0.00024931,3]
[387236172,1758664267610,-653.4,0.00024931,3]
[387236173,1758664267620,-400.0,0.00024931,3]
[387236174,1758664267629,-400.0,0.00024931,3]
[387236175,1758664267639,-1811.83,0.00024931,3]
[387236176,1758664267649,-400.0,0.00024931,3]
[387236177,1758664267659,-485.31,0.00024931,3]
[387236178,1758664267670,-609.4,0.00024931,3]
[387236179,1758664267679,-1777.36,0.00024931,3]
[387236180,1758664267689,-400.0,0.00024931,3]
[387236181,1758664267698,-955.0,0.00024931,3]
[387236182,1758664267707,-211.47309581,0.00024931,3]
[387236183,1758664267717,-1530.13,0.00024931,3]
[387236184,1758664267727,-400.0,0.00024931,3]
[387236185,1758664267736,-400.0,0.00024931,3]
[387236186,1758664267746,-1065.12,0.00024931,3]
[387236187,1758664267755,-400.0,0.00024931,3]
[387236188,1758664267764,-624.46,0.00024931,3]
[387236189,1758664267773,-400.0,0.00024931,3]
[387236190,1758664267782,-1005.24,0.00024931,3]
[387236191,1758664267791,-668.62,0.00024931,3]
[387236192,1758664267800,-766.88,0.00024931,3]
[387236193,1758664267809,-488.82,0.00024931,3]
[387236194,1758664267818,-400.0,0.00024931,3]
[387236195,1758664267828,-2251.93,0.00024931,3]
[387236196,1758664267837,-1866.98,0.00024931,3]
[387236197,1758664267847,-674.88,0.00024931,3]
[387236198,1758664267856,-400.0,0.00024931,3]
[387236199,1758664267866,-507.6,0.00024931,3]
[387236200,1758664267875,-151.0,0.00024931,7]
[387236201,1758664267884,-1430.39,0.00024931,3]
[387236202,1758664267894,-400.0,0.00024931,3]
[387236203,1758664267904,-400.0,0.00024931,3]
[387236204,1758664267913,-706.55,0.00024931,3]
[387236205,1758664267923,-400.0,0.00024931,3]
[387236206,1758664267932,-400.0,0.00024931,3]
[387236207,1758664267941,-400.0,0.00024931,3]
[387236208,1758664267950,-489.00248034,0.00024931,3]